[Event "9th RTU Rapid 2019"]
[Site "Riga"]
[Date "2019.08.04"]
[Round "5.19"]
[White "Zhukov, Anton"]
[Black "Reizniece-Ozola, Dana"]
[Result "1-0"]
[WhiteElo "2087"]
[BlackElo "2261"]
[PlyCount "173"]
[EventDate "2019.08.05"]
[EventType "swiss"]
[EventCountry "LAT"]
[TimeControl "5400+30"]
[WhiteClock "0:02:09"]
[BlackClock "0:03:08"]

1. d4 {[%emt 1:15:21]} Nf6 {[%emt 1:15:21]} 2. c4 {[%emt 0:00:27]} g6 {[%emt 0:00:27]} 3. Nc3 {[%emt 0:00:26]} Bg7 {[%emt 0:00:26]} 4. e4 {[%emt 0:00:27]} d6 {[%emt 0:00:27]} 5. Be2 {[%emt 0:00:27]} O-O {[%emt 0:00:30]} 6. Be3 {[%emt 0:00:27]} e5 {[%emt 0:00:30]} 7. d5 {[%emt 0:00:27]} a5 {[%emt 0:00:26]} 8. g4 {[%emt 0:00:26]} Na6 {[%emt 0:00:33]} 9. h4 {[%emt 0:00:27]} Nc5 {[%emt 0:00:48]} 10. f3 {[%emt 0:00:26]} c6 {[%emt 0:00:33]} 11. h5 {[%emt 0:00:34]} cxd5 {[%emt 0:00:31]} 12. cxd5 {[%emt 0:00:31]} Bd7 {[%emt 0:01:20]} 13. hxg6 {[%emt 0:00:37]} fxg6 {[%emt 0:00:33]} 14. Qd2 {[%emt 0:00:40]} a4 {[%emt 0:01:50]} 15. Bh6 {[%emt 0:00:49]} Bxh6 {[%emt 0:02:21]} 16. Qxh6 {[%emt 0:00:38]} Rf7 {[%emt 0:00:31]} 17. Nh3 {[%emt 0:00:36]} b5 {[%emt 0:01:06]} 18. O-O {[%emt 0:02:28]} b4 {[%emt 0:00:36]} 19. Nd1 {[%emt 0:00:28]} Qb6 {[%emt 0:02:05]} 20. Kg2 {[%emt 0:00:47]} Bb5 {[%emt 0:00:31]} 21. Qd2 {[%emt 0:00:55]} Bxe2 {[%emt 0:01:31]} 22. Qxe2 {[%emt 0:00:27]} Qa6 {[%emt 0:00:55]} 23. Qe3 {[%emt 0:01:11]} Nd3 {[%emt 0:00:43]} 24. Nhf2 {[%emt 0:00:50]} Nf4+ {[%emt 0:00:31]} 25. Kg1 {[%emt 0:00:38]} Rc8 {[%emt 0:00:30]} 26. g5 {[%emt 0:00:44]} N6h5 {[%emt 0:00:59]} 27. Ng4 {[%emt 0:00:42]} Kg7 {[%emt 0:00:45]} 28. Ndf2 {[%emt 0:00:55]} Rc2 {[%emt 0:00:46]} 29. b3 {[%emt 0:01:54]} a3 {[%emt 0:00:29]} 30. Qe1 {[%emt 0:00:47]} Qb6 {[%emt 0:00:38]} 31. Qe3 {[%emt 0:00:42]} Qb5 {[%emt 0:00:29]} 32. Rfd1 {[%emt 0:00:59]} Rfc7 {[%emt 0:00:45]} 33. Rd2 {[%emt 0:00:41]} R2c3 {[%emt 0:00:45]} 34. Qe1 {[%emt 0:00:46]} Rxf3 {[%emt 0:00:29]} 35. Rc1 {[%emt 0:00:34]} Rxc1 {[%emt 0:00:39]} 36. Qxc1 {[%emt 0:00:27]} Rc3 {[%emt 0:01:21]} 37. Qd1 {[%emt 0:00:38]} Qc5 {[%emt 0:00:31]} 38. Kh2 {[%emt 0:00:37]} Ng3 {[%emt 0:01:30]} 39. Nd3 {[%emt 0:00:52]} Nxd3 {[%emt 0:00:40]} 40. Rxd3 {[%emt 0:00:26]} Nxe4 {[%emt 0:00:36]} 41. Qf3 {[%emt 0:00:48]} Rc2+ {[%emt 0:00:36]} 42. Kh1 {[%emt 0:00:45]} Rc1+ {[%emt 0:00:26]} 43. Rd1 {[%emt 0:00:27]} Rxd1+ {[%emt 0:00:43]} 44. Qxd1 {[%emt 0:00:27]} Nxg5 {[%emt 0:00:36]} 45. Qd2 {[%emt 0:00:32]} h6 {[%emt 0:00:35]} 46. Kg2 {[%emt 0:00:34]} Qd4 {[%emt 0:00:42]} 47. Qxd4 {[%emt 0:00:45]} exd4 {[%emt 0:00:26]} 48. Nf2 {[%emt 0:00:26]} Kf6 {[%emt 0:00:37]} 49. Nd3 {[%emt 0:00:26]} Ne4 {[%emt 0:00:29]} 50. Nxb4 {[%emt 0:00:35]} Nc3 {[%emt 0:00:36]} 51. Kf3 {[%emt 0:01:00]} Ke5 {[%emt 0:00:34]} 52. Nc6+ {[%emt 0:00:27]} Kxd5 {[%emt 0:00:29]} 53. Nb4+ {[%emt 0:00:26]} Kc5 {[%emt 0:00:37]} 54. Nd3+ {[%emt 0:00:29]} Kb5 {[%emt 0:00:26]} 55. Nc1 {[%emt 0:00:27]} d5 {[%emt 0:00:48]} 56. Kf4 {[%emt 0:00:27]} g5+ {[%emt 0:00:39]} 57. Ke5 {[%emt 0:00:26]} g4 {[%emt 0:00:27]} 58. Kxd4 {[%emt 0:00:29]} Nd1 {[%emt 0:00:35]} 59. Ne2 {[%emt 0:01:14]} Kb4 {[%emt 0:00:28]} 60. Nf4 {[%emt 0:00:34]} Nc3 {[%emt 0:00:29]} 61. Nd3+ {[%emt 0:00:27]} Kb5 {[%emt 0:00:29]} 62. Kxc3 {[%emt 0:00:27]} g3 {[%emt 0:00:29]} 63. Nf4 {[%emt 0:00:30]} Kc5 {[%emt 0:00:34]} 64. Kd3 {[%emt 0:00:39]} h5 {[%emt 0:00:39]} 65. Ng2 {[%emt 0:00:34]} Kc6 {[%emt 0:00:31]} 66. Kd4 {[%emt 0:00:28]} Kd6 {[%emt 0:00:26]} 67. b4 {[%emt 0:02:04]} Kc6 {[%emt 0:00:27]} 68. b5+ {[%emt 0:00:51]} Kxb5 {[%emt 0:00:29]} 69. Kxd5 {[%emt 0:00:26]} Kb4 {[%emt 0:00:38]} 70. Kd4 {[%emt 0:00:26]} Kb5 {[%emt 0:00:26]} 71. Kc3 {[%emt 0:00:26]} Ka4 {[%emt 0:00:36]} 72. Kc4 {[%emt 0:00:26]} Ka5 {[%emt 0:00:26]} 73. Kb3 {[%emt 0:00:30]} Kb5 {[%emt 0:00:26]} 74. Kxa3 {[%emt 0:00:28]} Ka5 {[%emt 0:00:25]} 75. Kb3 {[%emt 0:00:28]} Kb5 {[%emt 0:00:26]} 76. a4+ {[%emt 0:00:30]} Ka5 {[%emt 0:00:26]} 77. Ka3 {[%emt 0:00:26]} Kb6 {[%emt 0:00:25]} 78. Kb4 Ka6 79. a5 {[%emt 0:00:51]} Kb7 {[%emt 0:00:05]} 80. Kb5 {[%emt 0:00:31]} Ka7 {[%emt 0:01:11]} 81. a6 {[%emt 0:00:26]} Kb8 {[%emt 0:00:26]} 82. Kb6 {[%emt 0:00:28]} Ka8 {[%emt 0:00:29]} 83. a7 {[%emt 0:01:16]} h4 {[%emt 0:00:27]} 84. Nf4 {[%emt 0:00:27]} g2 {[%emt 0:00:48]} 85. Nxg2 {[%emt 0:00:27]} h3 {[%emt 0:00:26]} 86. Nf4 {[%emt 0:00:26]} h2 {[%emt 0:00:26]} 87. Nd5 {[%emt 0:00:26]} 1-0

[Event "9th RTU Rapid 2019"]
[Site "Riga"]
[Date "2019.08.04"]
[Round "5.20"]
[White "Wedda, Dries"]
[Black "Lagerborg, Krister"]
[Result "1-0"]
[WhiteElo "2234"]
[BlackElo "2129"]
[PlyCount "77"]
[EventDate "2019.08.05"]
[EventType "swiss"]
[EventCountry "LAT"]
[TimeControl "5400+30"]
[WhiteClock "0:02:57"]
[BlackClock "0:00:56"]

1. d4 {[%emt 1:15:23]} Nf6 {[%emt 1:15:20]} 2. c4 {[%emt 0:00:25]} g6 {[%emt 0:00:26]} 3. Nc3 {[%emt 0:00:26]} Bg7 {[%emt 0:00:26]} 4. e4 {[%emt 0:00:26]} d6 {[%emt 0:00:26]} 5. Nge2 {[%emt 0:00:26]} O-O {[%emt 0:00:27]} 6. Ng3 {[%emt 0:00:26]} e5 {[%emt 0:00:38]} 7. d5 {[%emt 0:00:29]} Ne8 {[%emt 0:00:32]} 8. Be2 {[%emt 0:00:52]} f5 {[%emt 0:00:36]} 9. exf5 gxf5 {[%emt 0:00:26]} 10. f4 {[%emt 0:01:04]} a5 {[%emt 0:01:50]} 11. O-O {[%emt 0:01:32]} Na6 {[%emt 0:00:30]} 12. Be3 {[%emt 0:00:43]} b6 {[%emt 0:01:00]} 13. Qd2 {[%emt 0:01:44]} Nc5 {[%emt 0:00:54]} 14. Rae1 {[%emt 0:01:18]} e4 {[%emt 0:01:09]} 15. Nh5 {[%emt 0:01:28]} Bh8 {[%emt 0:01:14]} 16. Kh1 {[%emt 0:00:30]} Nf6 {[%emt 0:00:28]} 17. Nxf6+ {[%emt 0:01:31]} Bxf6 {[%emt 0:00:27]} 18. Rg1 {[%emt 0:00:39]} Qe7 {[%emt 0:02:10]} 19. Nb5 {[%emt 0:00:55]} Ba6 {[%emt 0:01:57]} 20. Nd4 {[%emt 0:00:38]} Bc8 {[%emt 0:00:48]} 21. g4 {[%emt 0:04:28]} fxg4 {[%emt 0:01:20]} 22. Bxg4 {[%emt 0:00:54]} Kh8 {[%emt 0:00:26]} 23. f5 {[%emt 0:01:04]} Rg8 {[%emt 0:01:20]} 24. Ref1 {[%emt 0:00:43]} Be5 {[%emt 0:00:51]} 25. Nc6 {[%emt 0:01:17]} Qf6 {[%emt 0:01:01]} 26. Nxe5 {[%emt 0:00:32]} dxe5 {[%emt 0:00:27]} 27. Bh3 {[%emt 0:00:48]} Bd7 {[%emt 0:01:35]} 28. Bg5 {[%emt 0:00:32]} Qf7 {[%emt 0:00:25]} 29. Qe3 {[%emt 0:00:45]} Raf8 {[%emt 0:01:13]} 30. f6 {[%emt 0:00:59]} Bxh3 31. Qxh3 {[%emt 0:00:27]} Rg6 {[%emt 0:02:07]} 32. Bh6 {[%emt 0:00:33]} Re8 {[%emt 0:00:33]} 33. Bg7+ {[%emt 0:01:16]} Kg8 {[%emt 0:00:34]} 34. Rxg6 {[%emt 0:00:30]} Qxg6 {[%emt 0:00:38]} 35. f7+ {[%emt 0:00:48]} Kxg7 {[%emt 0:00:27]} 36. fxe8=Q Qxe8 {[%emt 0:00:26]} 37. Qf5 {[%emt 0:01:06]} Qe7 {[%emt 0:00:30]} 38. Rg1+ {[%emt 0:00:28]} Kh8 {[%emt 0:00:26]} 39. Qc8+ {[%emt 0:00:29]} 1-0

[Event "9th RTU Rapid 2019"]
[Site "Riga"]
[Date "2019.08.04"]
[Round "5.21"]
[White "Vedrickas, Tautvydas"]
[Black "Gagare, Shalmali"]
[Result "1-0"]
[WhiteElo "2231"]
[BlackElo "1984"]
[PlyCount "85"]
[EventDate "2019.08.05"]
[EventType "swiss"]
[EventCountry "LAT"]
[TimeControl "5400+30"]
[WhiteClock "0:00:18"]
[BlackClock "0:00:47"]

1. d4 {[%emt 1:21:50]} Nf6 {[%emt 1:15:28]} 2. c4 {[%emt 0:00:26]} e6 {[%emt 0:00:27]} 3. Nf3 {[%emt 0:00:30]} d5 {[%emt 0:00:34]} 4. Nc3 {[%emt 0:00:30]} Be7 {[%emt 0:00:41]} 5. Bg5 {[%emt 0:00:45]} O-O {[%emt 0:00:34]} 6. e3 {[%emt 0:00:27]} h6 {[%emt 0:00:28]} 7. Bxf6 {[%emt 0:01:27]} Bxf6 {[%emt 0:00:28]} 8. Rc1 {[%emt 0:00:30]} b6 {[%emt 0:00:59]} 9. b3 {[%emt 0:00:41]} Bb7 {[%emt 0:00:57]} 10. Be2 {[%emt 0:00:28]} Nd7 {[%emt 0:00:34]} 11. O-O {[%emt 0:00:33]} dxc4 {[%emt 0:01:41]} 12. bxc4 {[%emt 0:00:39]} c5 {[%emt 0:00:33]} 13. Qa4 {[%emt 0:00:46]} cxd4 {[%emt 0:01:25]} 14. exd4 {[%emt 0:00:28]} a6 {[%emt 0:01:30]} 15. Rfd1 {[%emt 0:00:36]} Qc7 {[%emt 0:00:35]} 16. d5 {[%emt 0:00:54]} Bxc3 {[%emt 0:01:44]} 17. d6 {[%emt 0:01:34]} Qc6 {[%emt 0:01:16]} 18. Qxc6 {[%emt 0:00:30]} Bxc6 {[%emt 0:00:27]} 19. Rxc3 {[%emt 0:00:26]} Nc5 {[%emt 0:01:24]} 20. Ne5 {[%emt 0:00:36]} Ba4 {[%emt 0:00:47]} 21. Rb1 {[%emt 0:00:51]} Rab8 {[%emt 0:02:46]} 22. Bd1 {[%emt 0:01:05]} Be8 {[%emt 0:03:09]} 23. Bc2 {[%emt 0:02:08]} f6 {[%emt 0:00:51]} 24. Nf3 {[%emt 0:00:42]} e5 {[%emt 0:00:55]} 25. Nh4 {[%emt 0:00:44]} Bc6 {[%emt 0:01:05]} 26. Ng6 {[%emt 0:01:12]} Ne4 {[%emt 0:01:02]} 27. Ne7+ {[%emt 0:00:54]} Kf7 {[%emt 0:00:33]} 28. Re3 {[%emt 0:00:29]} Nxd6 {[%emt 0:00:50]} 29. Nxc6 {[%emt 0:00:28]} Rb7 {[%emt 0:00:32]} 30. Rd3 {[%emt 0:01:14]} Ke6 {[%emt 0:00:33]} 31. c5 {[%emt 0:00:35]} bxc5 {[%emt 0:00:32]} 32. Rxd6+ {[%emt 0:00:28]} Kxd6 {[%emt 0:00:26]} 33. Rxb7 {[%emt 0:00:27]} Kxc6 {[%emt 0:00:27]} 34. Be4+ {[%emt 0:00:27]} Kd6 {[%emt 0:00:26]} 35. Rb6+ {[%emt 0:00:35]} Kd7 {[%emt 0:00:35]} 36. Rxa6 {[%emt 0:00:28]} f5 {[%emt 0:00:29]} 37. Bd5 {[%emt 0:00:28]} Rf6 {[%emt 0:00:36]} 38. Rxf6 {[%emt 0:00:29]} gxf6 {[%emt 0:00:26]} 39. Kf1 {[%emt 0:00:28]} Kd6 {[%emt 0:00:28]} 40. Bc4 {[%emt 0:00:27]} e4 {[%emt 0:00:26]} 41. a4 {[%emt 0:00:28]} Kc6 {[%emt 0:00:31]} 42. a5 {[%emt 0:00:27]} f4 {[%emt 0:00:32]} 43. Ke2 {[%emt 0:00:33]} 1-0

[Event "9th RTU Rapid 2019"]
[Site "Riga"]
[Date "2019.08.04"]
[Round "5.22"]
[White "Bracker, Arne"]
[Black "Walkusz, Witoslaw"]
[Result "1-0"]
[WhiteElo "2227"]
[BlackElo "2138"]
[PlyCount "61"]
[EventDate "2019.08.05"]
[EventType "swiss"]
[EventCountry "LAT"]
[TimeControl "5400+30"]
[WhiteClock "0:00:10"]
[BlackClock "0:03:57"]

1. e4 {[%emt 1:15:23]} e5 {[%emt 1:15:21]} 2. Nf3 {[%emt 0:00:27]} Nc6 {[%emt 0:00:27]} 3. Bb5 {[%emt 0:00:28]} a6 {[%emt 0:00:29]} 4. Ba4 {[%emt 0:00:28]} Nf6 {[%emt 0:00:29]} 5. O-O {[%emt 0:00:28]} b5 {[%emt 0:00:47]} 6. Bb3 {[%emt 0:00:27]} Be7 {[%emt 0:00:27]} 7. Re1 {[%emt 0:01:16]} d6 {[%emt 0:00:41]} 8. c3 {[%emt 0:00:31]} O-O {[%emt 0:00:38]} 9. h3 {[%emt 0:00:34]} Bb7 {[%emt 0:01:25]} 10. d4 {[%emt 0:00:35]} Re8 {[%emt 0:00:46]} 11. Nbd2 {[%emt 0:02:41]} Bf8 {[%emt 0:00:32]} 12. a3 {[%emt 0:01:20]} Na5 {[%emt 0:02:05]} 13. Bc2 {[%emt 0:01:28]} exd4 {[%emt 0:00:55]} 14. cxd4 {[%emt 0:00:28]} c5 {[%emt 0:00:27]} 15. d5 {[%emt 0:00:48]} Qc7 {[%emt 0:02:32]} 16. b3 {[%emt 0:01:15]} c4 {[%emt 0:03:16]} 17. b4 {[%emt 0:00:36]} c3 {[%emt 0:00:36]} 18. bxa5 {[%emt 0:00:46]} cxd2 {[%emt 0:00:44]} 19. Bxd2 {[%emt 0:00:42]} Rac8 {[%emt 0:01:00]} 20. Bd3 {[%emt 0:00:47]} Nd7 {[%emt 0:01:03]} 21. Bb4 {[%emt 0:01:36]} Ne5 {[%emt 0:01:40]} 22. Nxe5 {[%emt 0:00:42]} dxe5 {[%emt 0:00:29]} 23. Rc1 {[%emt 0:01:04]} Qxc1 {[%emt 0:01:45]} 24. Qxc1 {[%emt 0:00:28]} Rxc1 {[%emt 0:00:27]} 25. Rxc1 {[%emt 0:00:26]} Rc8 {[%emt 0:00:34]} 26. Rxc8 {[%emt 0:00:53]} Bxc8 {[%emt 0:00:26]} 27. d6 {[%emt 0:02:42]} f6 {[%emt 0:00:55]} 28. a4 {[%emt 0:00:34]} g6 {[%emt 0:02:50]} 29. axb5 {[%emt 0:00:35]} axb5 {[%emt 0:00:37]} 30. Bxb5 {[%emt 0:00:29]} Kg7 {[%emt 0:00:27]} 31. d7 {[%emt 0:00:36]} 1-0

[Event "9th RTU Rapid 2019"]
[Site "Riga"]
[Date "2019.08.04"]
[Round "5.23"]
[White "Mota, Pankit"]
[Black "Damen, Jip"]
[Result "1/2-1/2"]
[WhiteElo "1841"]
[BlackElo "2179"]
[PlyCount "73"]
[EventDate "2019.08.05"]
[EventType "swiss"]
[EventCountry "LAT"]
[TimeControl "5400+30"]
[WhiteClock "0:03:40"]
[BlackClock "0:03:09"]

1. e4 {[%emt 1:15:23]} c5 {[%emt 1:15:21]} 2. c3 {[%emt 0:00:26]} Nf6 {[%emt 0:00:29]} 3. e5 {[%emt 0:00:27]} Nd5 {[%emt 0:00:26]} 4. Nf3 {[%emt 0:00:26]} e6 {[%emt 0:00:26]} 5. Bc4 {[%emt 0:00:28]} Nc6 {[%emt 0:00:29]} 6. d4 {[%emt 0:00:27]} cxd4 {[%emt 0:00:27]} 7. cxd4 {[%emt 0:00:26]} d6 {[%emt 0:00:28]} 8. O-O {[%emt 0:00:29]} Be7 {[%emt 0:00:29]} 9. Bd2 {[%emt 0:00:27]} O-O {[%emt 0:00:37]} 10. Nc3 {[%emt 0:00:27]} Nb6 {[%emt 0:00:39]} 11. Bb3 {[%emt 0:00:29]} Bd7 {[%emt 0:01:08]} 12. Qe2 {[%emt 0:01:05]} Rc8 {[%emt 0:00:40]} 13. Rad1 {[%emt 0:00:29]} Re8 {[%emt 0:01:12]} 14. Bf4 {[%emt 0:00:53]} d5 {[%emt 0:01:14]} 15. Bc2 {[%emt 0:01:10]} Nc4 {[%emt 0:00:50]} 16. Bb1 {[%emt 0:00:56]} Qb6 {[%emt 0:00:55]} 17. Bc1 {[%emt 0:00:44]} a5 {[%emt 0:01:06]} 18. h4 {[%emt 0:02:58]} f5 {[%emt 0:00:55]} 19. b3 {[%emt 0:03:46]} Na3 {[%emt 0:00:39]} 20. Bxf5 {[%emt 0:00:29]} exf5 {[%emt 0:00:52]} 21. Nxd5 {[%emt 0:00:28]} Qd8 {[%emt 0:00:43]} 22. e6 {[%emt 0:00:56]} Bf8 {[%emt 0:00:43]} 23. Ng5 {[%emt 0:02:06]} Bxe6 {[%emt 0:01:32]} 24. Qh5 {[%emt 0:00:28]} h6 {[%emt 0:00:27]} 25. Nf4 {[%emt 0:00:26]} hxg5 {[%emt 0:01:46]} 26. hxg5 {[%emt 0:00:31]} Bf7 {[%emt 0:03:42]} 27. g6 {[%emt 0:00:27]} Bxg6 28. Nxg6 {[%emt 0:00:27]} Bd6 {[%emt 0:02:01]} 29. Qh8+ {[%emt 0:01:25]} Kf7 {[%emt 0:00:26]} 30. Qh5 {[%emt 0:00:26]} Kg8 {[%emt 0:00:42]} 31. Qh8+ {[%emt 0:02:18]} Kf7 {[%emt 0:00:26]} 32. Qh5 {[%emt 0:00:28]} Qf6 {[%emt 0:00:40]} 33. Ne5+ {[%emt 0:00:03]} Kg8 {[%emt 0:00:01]} 34. Bg5 {[%emt 0:00:01]} Qe6 {[%emt 0:00:02]} 35. Ng6 {[%emt 0:00:02]} Qf6 36. Ne5 {[%emt 0:00:02]} Qd8 {[%emt 0:00:03]} 37. Bc1 1/2-1/2

[Event "9th RTU Rapid 2019"]
[Site "Riga"]
[Date "2019.08.04"]
[Round "5.24"]
[White "Dhyana Patel"]
[Black "Alvarado Ascanio, Francisco"]
[Result "1-0"]
[WhiteElo "1900"]
[BlackElo "2166"]
[PlyCount "55"]
[EventDate "2019.08.05"]
[EventType "swiss"]
[EventCountry "LAT"]
[TimeControl "5400+30"]
[WhiteClock "0:00:11"]
[BlackClock "0:08:39"]

1. e4 {[%emt 1:15:22]} e6 {[%emt 1:15:21]} 2. d4 {[%emt 0:00:28]} d5 {[%emt 0:00:26]} 3. Nd2 {[%emt 0:00:27]} Nf6 {[%emt 0:00:27]} 4. e5 {[%emt 0:00:27]} Nfd7 {[%emt 0:00:27]} 5. Bd3 {[%emt 0:00:27]} c5 {[%emt 0:00:26]} 6. c3 {[%emt 0:00:26]} Nc6 {[%emt 0:00:26]} 7. Ne2 {[%emt 0:00:28]} cxd4 {[%emt 0:00:27]} 8. cxd4 {[%emt 0:00:27]} f6 {[%emt 0:00:26]} 9. Nf4 {[%emt 0:00:28]} Nxd4 {[%emt 0:00:32]} 10. Qh5+ {[%emt 0:00:28]} Ke7 {[%emt 0:00:28]} 11. exf6+ {[%emt 0:00:27]} Nxf6 {[%emt 0:00:39]} 12. Ng6+ {[%emt 0:00:27]} hxg6 {[%emt 0:00:31]} 13. Qxh8 {[%emt 0:00:28]} Kf7 {[%emt 0:00:26]} 14. O-O {[%emt 0:00:28]} e5 {[%emt 0:00:28]} 15. Nb3 {[%emt 0:00:27]} Nxb3 {[%emt 0:00:28]} 16. axb3 {[%emt 0:00:26]} Bf5 {[%emt 0:00:27]} 17. Bxf5 {[%emt 0:00:27]} gxf5 {[%emt 0:00:27]} 18. Bg5 {[%emt 0:00:27]} Bc5 {[%emt 0:02:04]} 19. Qh3 {[%emt 0:00:31]} g6 {[%emt 0:02:15]} 20. b4 {[%emt 0:03:32]} Bb6 {[%emt 0:05:08]} 21. Rfd1 {[%emt 0:01:05]} Bxf2+ {[%emt 0:01:37]} 22. Kxf2 {[%emt 0:00:52]} Ne4+ {[%emt 0:00:28]} 23. Kg1 {[%emt 0:00:34]} Qxg5 {[%emt 0:02:38]} 24. Rxd5 {[%emt 0:01:50]} Rh8 {[%emt 0:01:02]} 25. Rd7+ {[%emt 0:02:08]} Ke8 {[%emt 0:03:35]} 26. Qxh8+ {[%emt 0:00:48]} Kxd7 {[%emt 0:00:26]} 27. Rd1+ {[%emt 0:00:27]} Ke7 {[%emt 0:01:14]} 28. Qxe5+ {[%emt 0:00:29]} 1-0

[Event "9th RTU Rapid 2019"]
[Site "Riga"]
[Date "2019.08.04"]
[Round "5.25"]
[White "Afanasiev, Vadim"]
[Black "Rakshitta Ravi"]
[Result "1-0"]
[WhiteElo "2241"]
[BlackElo "2112"]
[PlyCount "81"]
[EventDate "2019.08.05"]
[EventType "swiss"]
[EventCountry "LAT"]
[TimeControl "5400+30"]
[WhiteClock "0:07:07"]
[BlackClock "0:00:49"]

1. d4 {[%emt 1:15:23]} Nf6 {[%emt 1:15:26]} 2. c4 {[%emt 0:00:27]} g6 {[%emt 0:00:30]} 3. Nc3 {[%emt 0:00:27]} Bg7 {[%emt 0:00:26]} 4. e4 {[%emt 0:00:27]} d6 {[%emt 0:00:26]} 5. Be2 {[%emt 0:00:26]} O-O {[%emt 0:00:27]} 6. Bg5 {[%emt 0:00:27]} Qe8 {[%emt 0:00:38]} 7. Qd2 {[%emt 0:00:44]} e5 {[%emt 0:01:04]} 8. d5 {[%emt 0:00:27]} a5 {[%emt 0:00:28]} 9. Bd1 {[%emt 0:01:17]} Na6 {[%emt 0:00:30]} 10. Nge2 {[%emt 0:01:53]} Nc5 {[%emt 0:00:28]} 11. Bc2 {[%emt 0:00:27]} Nh5 {[%emt 0:00:37]} 12. Nb5 {[%emt 0:01:05]} Na6 {[%emt 0:00:48]} 13. Qxa5 {[%emt 0:03:20]} h6 {[%emt 0:00:29]} 14. Be3 {[%emt 0:01:21]} b6 {[%emt 0:00:32]} 15. Qd2 {[%emt 0:00:33]} Kh7 {[%emt 0:01:36]} 16. O-O {[%emt 0:00:41]} f5 {[%emt 0:01:18]} 17. exf5 {[%emt 0:01:00]} gxf5 {[%emt 0:00:31]} 18. f4 {[%emt 0:01:22]} Qg6 {[%emt 0:01:14]} 19. Rae1 {[%emt 0:02:21]} Bd7 {[%emt 0:00:31]} 20. a3 {[%emt 0:01:54]} Rg8 {[%emt 0:00:33]} 21. Rf2 {[%emt 0:01:36]} Bf6 {[%emt 0:00:32]} 22. g3 {[%emt 0:00:38]} Raf8 {[%emt 0:00:37]} 23. Ref1 {[%emt 0:00:36]} Bd8 {[%emt 0:00:37]} 24. b4 {[%emt 0:00:33]} Kh8 {[%emt 0:00:27]} 25. Na7 {[%emt 0:00:48]} Nf6 {[%emt 0:02:49]} 26. fxe5 {[%emt 0:00:34]} Ng4 {[%emt 0:00:27]} 27. e6 {[%emt 0:00:50]} Nxf2 {[%emt 0:01:18]} 28. Rxf2 {[%emt 0:00:31]} Be8 {[%emt 0:00:32]} 29. Bxh6 {[%emt 0:00:37]} Rf6 {[%emt 0:00:39]} 30. Be3 {[%emt 0:00:29]} Rff8 {[%emt 0:00:36]} 31. Nd4 {[%emt 0:00:45]} Qh5 {[%emt 0:00:46]} 32. Nxf5 {[%emt 0:00:38]} Bg6 {[%emt 0:00:33]} 33. e7 {[%emt 0:00:41]} Bxe7 {[%emt 0:01:04]} 34. Nxe7 {[%emt 0:00:28]} Bxc2 {[%emt 0:00:28]} 35. Bd4+ {[%emt 0:00:48]} Kh7 {[%emt 0:00:34]} 36. Qxc2+ {[%emt 0:00:28]} Kh6 {[%emt 0:00:28]} 37. Nxg8+ {[%emt 0:00:34]} Rxg8 {[%emt 0:00:33]} 38. Rf6+ {[%emt 0:00:35]} Rg6 {[%emt 0:00:28]} 39. Rxg6+ {[%emt 0:00:34]} Qxg6 {[%emt 0:00:26]} 40. Qxg6+ {[%emt 0:00:29]} Kxg6 {[%emt 0:00:27]} 41. Nb5 {[%emt 0:00:27]} 1-0

[Event "9th RTU Rapid 2019"]
[Site "Riga"]
[Date "2019.08.04"]
[Round "5.26"]
[White "Vidruska, Renate"]
[Black "Chibukhchyan, Erik"]
[Result "0-1"]
[WhiteElo "2057"]
[BlackElo "2231"]
[PlyCount "107"]
[EventDate "2019.08.05"]
[EventType "swiss"]
[EventCountry "LAT"]
[TimeControl "5400+30"]
[WhiteClock "0:00:39"]
[BlackClock "0:00:07"]

1. e4 {[%emt 1:15:21]} e5 {[%emt 1:15:21]} 2. Nf3 {[%emt 0:00:28]} Nc6 {[%emt 0:00:26]} 3. Nc3 {[%emt 0:00:25]} Nf6 {[%emt 0:00:27]} 4. Bb5 {[%emt 0:00:27]} d6 {[%emt 0:00:44]} 5. d4 {[%emt 0:00:29]} exd4 {[%emt 0:00:27]} 6. Nxd4 {[%emt 0:00:26]} Bd7 {[%emt 0:00:26]} 7. Bxc6 {[%emt 0:00:35]} bxc6 {[%emt 0:00:26]} 8. Qf3 {[%emt 0:00:34]} c5 {[%emt 0:02:12]} 9. Nf5 {[%emt 0:01:26]} Bxf5 {[%emt 0:00:26]} 10. Qxf5 {[%emt 0:00:27]} Qd7 {[%emt 0:01:09]} 11. Qf3 {[%emt 0:00:26]} Qg4 {[%emt 0:00:27]} 12. Qxg4 {[%emt 0:00:36]} Nxg4 {[%emt 0:00:27]} 13. b3 {[%emt 0:01:07]} g6 {[%emt 0:00:41]} 14. Bb2 {[%emt 0:00:28]} Bg7 {[%emt 0:00:28]} 15. h3 {[%emt 0:01:03]} Nh6 {[%emt 0:03:19]} 16. O-O-O {[%emt 0:00:32]} O-O-O {[%emt 0:00:32]} 17. Nd5 {[%emt 0:01:00]} Bxb2+ {[%emt 0:00:35]} 18. Kxb2 {[%emt 0:00:29]} f5 {[%emt 0:00:38]} 19. Rhe1 {[%emt 0:01:40]} Rhf8 {[%emt 0:02:01]} 20. f3 {[%emt 0:01:37]} fxe4 {[%emt 0:00:29]} 21. Rxe4 {[%emt 0:00:27]} c6 {[%emt 0:01:24]} 22. Ne3 {[%emt 0:01:12]} Nf5 {[%emt 0:03:37]} 23. Nxf5 {[%emt 0:00:31]} Rxf5 {[%emt 0:00:30]} 24. Re7 {[%emt 0:00:52]} Rd7 {[%emt 0:00:26]} 25. Rde1 {[%emt 0:00:37]} Rf7 {[%emt 0:00:38]} 26. Rxf7 {[%emt 0:00:50]} Rxf7 {[%emt 0:00:26]} 27. Re8+ {[%emt 0:00:35]} Kd7 {[%emt 0:00:26]} 28. Ra8 {[%emt 0:00:40]} Ke6 {[%emt 0:00:25]} 29. Rc8 {[%emt 0:00:32]} Kd7 {[%emt 0:00:26]} 30. Ra8 {[%emt 0:00:50]} Ke6 {[%emt 0:00:26]} 31. Rc8 {[%emt 0:00:27]} Ke5 {[%emt 0:01:46]} 32. Rxc6 {[%emt 0:00:37]} Rd7 {[%emt 0:00:26]} 33. Rc8 {[%emt 0:01:41]} Kf4 {[%emt 0:00:29]} 34. Re8 {[%emt 0:00:27]} Kg3 {[%emt 0:00:41]} 35. Re2 {[%emt 0:00:27]} d5 {[%emt 0:01:10]} 36. c3 {[%emt 0:00:35]} a5 {[%emt 0:00:47]} 37. Kc2 {[%emt 0:00:31]} d4 {[%emt 0:00:49]} 38. Rd2 {[%emt 0:01:43]} h5 {[%emt 0:01:16]} 39. a3 {[%emt 0:01:49]} h4 {[%emt 0:00:29]} 40. b4 {[%emt 0:00:36]} axb4 {[%emt 0:00:29]} 41. axb4 {[%emt 0:00:32]} cxb4 {[%emt 0:00:28]} 42. cxb4 {[%emt 0:00:27]} Kf4 {[%emt 0:01:27]} 43. Kd3 {[%emt 0:00:50]} Rb7 {[%emt 0:00:28]} 44. Kc4 {[%emt 0:01:32]} Kg3 {[%emt 0:00:38]} 45. b5 {[%emt 0:00:37]} d3 {[%emt 0:00:26]} 46. Kc5 {[%emt 0:00:34]} Rd7 {[%emt 0:00:26]} 47. Kc6 {[%emt 0:00:30]} Rd4 {[%emt 0:00:27]} 48. Kc5 {[%emt 0:00:36]} Rd8 {[%emt 0:00:26]} 49. b6 {[%emt 0:00:26]} Kf4 {[%emt 0:00:27]} 50. b7 {[%emt 0:02:17]} Ke3 {[%emt 0:00:26]} 51. Rb2 {[%emt 0:01:24]} d2 {[%emt 0:00:28]} 52. Rb3+ {[%emt 0:00:31]} Ke2 {[%emt 0:00:30]} 53. Rb2 {[%emt 0:00:32]} Ke1 {[%emt 0:00:27]} 54. Rb1+ {[%emt 0:00:08]} 0-1